bitfinex/quotes_ETHUSD_20250406
["timestamp","ask_amount","ask_price","bid_price","bid_amount"]
[1743907346513,17.99991966,1809.4,1809.3,0.69111866]
[1743907346828,17.99991966,1809.4,1809.3,0.89960245]
[1743907347010,17.99991966,1809.4,1809.3,0.20848379]
[1743907347379,17.99991966,1809.4,1809.1,0.1]
[1743907347380,7.41906,1809.3,1809.1,0.1]
[1743907347538,5.53658151,1809.2,1809.1,0.1]
[1743907347738,10.78025566,1809.2,1809.1,0.1]
[1743907348872,14.78025566,1809.2,1809.1,0.1]
[1743907349270,21.35025566,1809.2,1809.1,0.1]
[1743907349470,22.14025566,1809.2,1809.1,0.1]
[1743907350468,22.55753334,1809.2,1809.1,0.1]
[1743907353439,22.55753334,1809.2,1809.1,0.30934962]
[1743907353675,22.55753334,1809.2,1809.1,0.1]
[1743907353843,22.55753334,1809.2,1809.1,0.30934962]
[1743907354042,22.55753334,1809.2,1809.1,0.1]
[1743907354244,22.55753334,1809.2,1809.1,0.30934962]
[1743907354443,22.55753334,1809.2,1809.1,0.1]
[1743907354643,22.55753334,1809.2,1809.1,0.30934962]
[1743907354850,22.55753334,1809.2,1809.1,0.1]
[1743907355050,22.55753334,1809.2,1809.1,0.30934962]
[1743907355252,22.55753334,1809.2,1809.1,0.1]
[1743907355451,18.55753334,1809.2,1809.1,0.30934962]
[1743907355652,18.55753334,1809.2,1809.1,0.1]
[1743907356174,18.55753334,1809.2,1809.1,0.30934962]
[1743907358368,22.55753334,1809.2,1809.1,0.30934962]
[1743907363790,21.18296919,1809.2,1809.1,0.30934962]
[1743907364084,11.97385919,1809.2,1809.1,0.30934962]
[1743907365983,8.97385919,1809.2,1809.1,4.97306962]
[1743907366175,6.02,1809.2,1809.1,4.97306962]
[1743907366682,6.02,1809.2,1809.1,5.1459732]
[1743907366892,6.02,1809.2,1809.1,5.87461094]
[1743907369385,6.02,1809.2,1809.1,6.04751838]
[1743907369991,6.02,1809.2,1809.1,5.87461094]
[1743907371388,3.0,1809.3,1809.1,5.87461094]
[1743907371963,2.53658151,1809.2,1809.1,5.87461094]
[1743907372491,2.53658151,1809.2,1809.1,1.10374962]
[1743907372699,2.53658151,1809.2,1809.1,0.30934962]
[1743907372991,2.53658151,1809.2,1809.1,0.30979751]
[1743907375168,2.95854625,1809.2,1809.1,0.30979751]
[1743907384007,2.95854625,1809.2,1809.1,4.95271751]
[1743907384184,2.95854625,1809.2,1809.1,5.12562836]
[1743907384379,2.95854625,1809.2,1809.1,1.25630836]
[1743907385883,2.95854625,1809.2,1809.1,1.08339751]
[1743907386511,2.95854625,1809.2,1809.1,1.25631173]
[1743907388413,2.95854625,1809.2,1809.1,0.48271173]
[1743907388625,2.95854625,1809.2,1809.1,0.30979751]
[1743907389517,2.95854625,1809.2,1809.1,0.48271385]
[1743907394924,11.57060188,1809.2,1809.1,0.48271385]
[1743907395490,11.57060188,1809.2,1809.1,0.30979751]
[1743907400628,17.59060188,1809.2,1809.1,0.30979751]
[1743907401929,16.83040188,1809.2,1809.1,0.30979751]
[1743907413738,13.83040188,1809.2,1809.1,0.30979751]
[1743907417634,8.97854625,1809.2,1809.1,0.30979751]
[1743907417935,8.97854625,1809.2,1809.1,1.24711977]
[1743907418433,8.97854625,1809.2,1809.1,5.11643977]
[1743907424861,8.97854625,1809.2,1809.1,1.24711977]
[1743907426167,8.97854625,1809.2,1809.1,0.48271977]
[1743907426353,9.87640088,1809.2,1809.1,0.30979751]
[1743907426652,13.74551088,1809.2,1809.1,0.30979751]
[1743907434657,9.87640088,1809.2,1809.1,0.30979751]
[1743907434951,8.97854625,1809.2,1809.1,0.30979751]
[1743907435154,8.97854625,1809.2,1809.1,1.14179751]
[1743907437229,6.44196474,1809.2,1809.1,5.18402689]
[1743907438694,6.02,1809.2,1809.1,5.18402689]
[1743907438833,6.02,1809.2,1809.1,5.18402624]
[1743907439032,6.02,1809.2,1809.1,6.08937293]
[1743907440564,8.96344178,1809.2,1809.1,0.48270624]
[1743907440862,8.96344178,1809.2,1809.1,0.30979751]
[1743907441058,19.71173329,1809.2,1809.1,0.30979751]
[1743907441432,17.17515178,1809.2,1809.1,0.30979751]
[1743907442767,21.17515178,1809.2,1809.1,0.30979751]
[1743907443266,24.19265696,1809.2,1809.1,0.30979751]
[1743907444453,26.72923847,1809.2,1809.1,0.30979751]
[1743907445068,24.19265696,1809.2,1809.1,0.30979751]
[1743907445256,26.72923847,1809.2,1809.1,0.30979751]
[1743907445565,24.19265696,1809.2,1809.1,0.30979751]
[1743907447482,26.72923847,1809.2,1809.1,0.30979751]
[1743907447969,24.19265696,1809.2,1809.1,0.30979751]
[1743907451174,26.72923847,1809.2,1809.1,0.30979751]
[1743907452254,22.72923847,1809.2,1809.1,0.30979751]
[1743907453086,22.72923847,1809.2,1809.1,0.1]
[1743907454654,26.72923847,1809.2,1809.1,0.1]
[1743907455585,3.87059,1808.6,1808.3,0.8196]
[1743907455755,3.87125,1808.2,1808.1,0.1]
[1743907455955,15.32783151,1808.2,1808.1,0.1]
[1743907456590,11.45658151,1808.2,1808.1,0.1]
[1743907456985,11.45658151,1808.2,1808.1,0.9196]
[1743907459169,11.45658151,1808.2,1808.1,4.79106]
[1743907459790,11.87919096,1808.2,1808.1,4.79106]
[1743907459996,6.34260945,1808.2,1808.1,5.657318]
[1743907460766,5.92,1808.2,1808.1,4.79106]
[1743907460966,5.92,1808.2,1808.1,4.96404778]
[1743907462482,5.92,1808.2,1808.1,4.79106]
[1743907463874,5.92,1808.2,1808.1,5.657318]
[1743907465205,0.41085652,1808.4,1808.2,3.87106]
[1743907465371,4.23359858,1808.5,1808.2,3.87106]
[1743907465800,4.23359858,1808.5,1808.3,0.17854778]
[1743907467912,4.65882013,1808.5,1808.3,0.17854778]
[1743907468772,10.74026314,1808.5,1808.3,0.17854778]
[1743907468976,3.87082,1808.4,1808.1,0.1]
[1743907469211,4.23359858,1808.2,1808.1,0.1]
[1743907469913,4.23359858,1808.2,1808.1,3.97146]
[1743907470498,4.23359858,1808.2,1808.1,0.1]
[1743907470900,12.54416444,1808.2,1808.1,0.1]
[1743907471674,8.12291444,1808.2,1808.1,0.1]
[1743907471877,7.23359858,1808.2,1808.1,0.1]
[1743907472079,11.65484858,1808.2,1808.1,0.1]
[1743907473615,3.87296,1807.4,1807.3,1.22753748]
[1743907473814,8.92,1807.4,1807.3,1.22753748]
[1743907474186,8.92,1807.4,1807.3,1.97763748]
[1743907474706,5.92,1807.4,1807.3,1.97763748]
[1743907476806,5.92,1807.4,1807.3,6.55865798]
[1743907477683,7.23359858,1807.8,1807.6,4.63763]
[1743907477877,4.23359858,1807.8,1807.6,4.63745]
[1743907478082,4.23359858,1807.8,1807.7,3.87232]
[1743907478285,4.23359858,1807.8,1807.6,4.63745]
[1743907479580,4.64879962,1807.8,1807.6,4.63745]
[1743907480392,4.64879962,1807.8,1807.6,0.7651]
[1743907480789,4.64879962,1807.8,1807.7,0.16704398]
[1743907483386,5.41367958,1807.8,1807.7,0.16704398]
[1743907483783,5.41367958,1807.8,1807.5,4.67841]
[1743907483982,5.41367958,1807.8,1807.7,0.16704398]
[1743907485320,5.41367958,1807.8,1807.5,4.67841]
[1743907485519,5.41367958,1807.8,1807.6,0.16704398]
[1743907488829,4.64879962,1807.8,1807.6,7.91193398]
[1743907489322,4.64879962,1807.8,1807.6,4.03942398]
[1743907490229,7.64879962,1807.8,1807.7,3.87232]
[1743907490530,7.64879962,1807.8,1807.7,4.04046407]
[1743907491330,7.64879962,1807.8,1807.7,0.16814407]
[1743907492434,7.64879962,1807.8,1807.7,4.04046407]
[1743907494931,7.64879962,1807.8,1807.7,0.16814407]
[1743907496919,7.64879962,1807.8,1807.7,4.04046407]
[1743907502507,4.64879962,1807.8,1807.7,4.04046407]
[1743907508340,0.41520104,1807.8,1807.7,4.81686407]
[1743907508510,13.15359858,1808.0,1807.8,3.87195]
[1743907508705,14.46895844,1808.0,1807.8,3.87195]
[1743907508945,14.46895844,1808.0,1807.9,4.04033127]
[1743907509744,4.23359858,1808.0,1807.9,4.04033127]
[1743907512134,4.65896377,1808.0,1807.9,4.04033127]
[1743907514132,0.42536519,1808.0,1807.9,4.81673127]
[1743907514439,4.23359858,1808.2,1808.0,3.87151]
[1743907514606,4.23359858,1808.2,1808.1,3.87146]
[1743907514817,8.23359858,1808.2,1808.1,4.03927694]
[1743907515148,8.23359858,1808.2,1808.0,3.87162]
[1743907515644,4.23359858,1808.2,1808.0,3.87162]
[1743907516733,4.65582553,1808.2,1808.0,3.87162]
[1743907517332,4.65582553,1808.2,1808.0,7.74318]
[1743907517515,4.65582553,1808.2,1808.1,0.16781694]
[1743907522325,5.71340808,1808.2,1808.1,0.16781694]
[1743907528356,4.65582553,1808.2,1808.1,0.16781694]
[1743907528533,4.65582553,1808.2,1808.1,4.03927694]
[1743907529656,4.65582553,1808.2,1808.1,0.16781694]
[1743907531464,5.46052553,1808.2,1808.1,0.16781694]
[1743907531623,5.46052553,1808.2,1807.9,3.87183]
[1743907531824,3.1392105,1808.2,1808.1,0.16606042]
[1743907532025,0.8047,1808.0,1807.7,3.87227]
[1743907532226,4.23359858,1807.8,1807.5,4.62402]
[1743907533661,4.23359858,1807.6,1807.5,3.87262]
[1743907534041,4.23359858,1807.6,1807.4,3.87295]
[1743907534439,4.65899029,1807.6,1807.4,3.87295]
[1743907535043,4.65899029,1807.6,1807.4,7.74576]
[1743907535369,4.65899029,1807.6,1807.5,3.87275]
[1743907535869,4.65899029,1807.6,1807.4,7.74569]
[1743907536572,4.65899029,1807.6,1807.4,3.87281]
[1743907540084,4.65899029,1807.6,1807.4,7.74562]
[1743907540241,4.65899029,1807.6,1807.4,3.87281]
[1743907540446,4.65899029,1807.6,1807.5,3.87275]
[1743907540982,4.65899029,1807.6,1807.5,4.03958324]
[1743907542885,4.65899029,1807.6,1807.5,0.16683324]
[1743907543687,5.67488932,1807.6,1807.5,0.16683324]
[1743907543856,10.36101932,1807.6,1807.5,0.16683324]
[1743907544040,10.36101932,1807.6,1807.3,1.22753748]
[1743907544244,4.23359858,1807.4,1807.3,1.22753748]
[1743907545061,4.23359858,1807.4,1807.3,5.10071748]
[1743907546299,5.92,1807.5,1807.4,4.69186]
[1743907546866,5.92,1807.5,1807.4,5.67111775]
[1743907550399,4.23359858,1807.9,1807.7,3.87228]
[1743907551063,4.23359858,1807.9,1807.7,4.69118]
[1743907551263,4.23359858,1807.9,1807.7,4.6911]
[1743907552084,7.23359858,1807.9,1807.8,3.8721]
[1743907552882,4.23359858,1808.0,1807.9,3.87189]
[1743907553099,4.0,1808.0,1807.9,0.774386]
[1743907553302,4.23359858,1808.2,1807.9,0.8189]
[1743907553474,4.23359858,1808.2,1808.1,3.87146]
[1743907553676,4.64733954,1808.2,1808.1,3.87146]
[1743907553974,4.41374096,1808.2,1808.1,3.87146]
[1743907554159,10.15359858,1808.4,1808.2,3.87113]
[1743907554958,10.15359858,1808.4,1808.2,7.74222]
[1743907555888,10.15359858,1808.4,1808.3,0.16766549]
[1743907556789,10.15359858,1808.4,1808.2,3.87109]
[1743907556978,10.15359858,1808.4,1808.3,0.16766549]
[1743907557288,10.15359858,1808.4,1808.2,3.87109]
[1743907557481,10.57226038,1808.4,1808.2,3.87109]
[1743907557683,10.57226038,1808.4,1808.3,0.16766549]
[1743907557994,10.57226038,1808.4,1808.2,3.87109]
[1743907558192,10.57226038,1808.4,1808.3,0.16766549]
[1743907558380,10.57226038,1808.4,1808.2,3.87109]
[1743907558690,10.57226038,1808.4,1808.3,0.16766549]
[1743907559190,10.57226038,1808.4,1808.2,3.87109]
[1743907559391,10.57226038,1808.4,1808.3,0.16766549]
[1743907559691,10.57226038,1808.4,1808.2,3.87109]
[1743907560090,10.57226038,1808.4,1808.3,0.16766549]
[1743907560391,10.57226038,1808.4,1808.2,3.87109]
[1743907560558,10.57226038,1808.4,1808.3,0.16766549]
[1743907560754,10.57226038,1808.4,1808.2,3.87109]
[1743907560960,10.57226038,1808.4,1808.3,0.16766549]
[1743907561181,10.57226038,1808.4,1808.1,4.69035]
[1743907561488,0.7544,1808.1,1807.6,0.7595]
[1743907561694,4.23359858,1807.9,1807.8,3.87208]
[1743907562561,4.98799858,1808.1,1807.9,3.87176]
[1743907562985,4.98799858,1808.1,1807.9,3.87174]
[1743907563192,4.98799858,1808.1,1807.8,3.87206]
[1743907563393,5.48679844,1808.1,1807.8,3.87206]
[1743907566997,5.48679844,1808.1,1807.8,7.74402]
[1743907567965,5.48679844,1808.1,1807.8,3.87196]
[1743907569998,5.48679844,1808.1,1807.9,3.87186]
[1743907570200,5.48679844,1808.1,1807.8,3.87196]
[1743907570798,5.48679844,1808.1,1807.9,0.16677375]
[1743907573381,3.87134,1808.2,1807.9,0.16677375]
[1743907573582,4.23359858,1808.1,1807.9,0.16677375]
[1743907573780,4.99929858,1808.1,1807.9,0.16677375]
[1743907578406,4.23359858,1808.1,1807.9,0.16677375]
[1743907578793,4.23359858,1808.1,1807.9,4.03863375]
[1743907579191,4.23359858,1808.1,1807.9,7.91043375]
[1743907580009,4.23359858,1808.1,1807.9,4.03857375]
[1743907581425,5.04408644,1808.1,1807.9,4.03857375]
[1743907583917,2.54147354,1808.0,1807.9,4.03857375]
[1743907585621,2.54147354,1808.2,1808.0,3.87156]
[1743907585793,2.54147354,1808.2,1808.0,7.74314]
[1743907585999,2.54147354,1808.2,1808.1,0.16686292]
[1743907586329,6.54147354,1808.2,1808.1,0.16686292]
[1743907586821,2.54147354,1808.2,1808.1,0.16660913]
[1743907589990,2.54147354,1808.2,1808.0,3.87153]
[1743907590521,2.54147354,1808.2,1808.1,0.16614721]
[1743907592543,2.54147354,1808.2,1808.1,4.78770721]
[1743907594536,11.07947089,1808.2,1808.1,0.16614721]
[1743907594837,3.8076,1808.0,1807.6,7.74488]
[1743907595033,2.54147354,1807.8,1807.6,7.74488]
[1743907595235,2.54147354,1807.8,1807.6,7.74479]
[1743907595804,0.4232528,1807.8,1807.6,7.74479]
[1743907596058,4.23668525,1807.9,1807.7,3.87231]
[1743907597647,4.23668525,1807.9,1807.8,3.8721]
[1743907600642,4.23668525,1807.9,1807.8,4.0251135]
[1743907601039,4.6497647,1807.9,1807.8,4.0251135]
[1743907602048,4.6497647,1807.9,1807.8,0.1530135]
[1743907603027,0.41307945,1807.9,1807.8,4.0251135]
[1743907603231,8.92,1808.0,1807.8,0.1530135]
[1743907603440,10.69838953,1808.0,1807.8,0.1530135]
[1743907605839,10.69838953,1808.0,1807.8,4.0251135]
[1743907606046,8.92,1808.0,1807.8,4.0251135]
[1743907606357,9.34494046,1808.0,1807.8,4.0251135]
[1743907607140,9.34494046,1808.0,1807.8,0.1530135]
[1743907609242,9.34494046,1808.0,1807.8,4.0250935]
[1743907610758,9.34494046,1808.0,1807.8,0.1530135]
[1743907616638,9.34494046,1808.0,1807.8,4.0251035]
[1743907617646,2.5415946,1807.9,1807.8,4.0251035]
[1743907622463,2.5415946,1807.9,1807.8,0.1530135]
[1743907625069,2.5415946,1807.9,1807.8,4.0251135]
[1743907626379,9.34494046,1808.0,1807.8,7.8972135]
[1743907627079,6.34494046,1808.0,1807.9,4.68009]
[1743907627365,6.34494046,1808.0,1807.9,4.83328704]
[1743907629435,6.34494046,1808.0,1807.9,0.96139704]
[1743907630170,6.34494046,1808.0,1807.9,0.15319704]
[1743907632572,6.34494046,1808.0,1807.9,4.02508704]
[1743907636407,6.34494046,1808.0,1807.9,0.15319704]
[1743907641897,6.34494046,1808.0,1807.9,4.02508704]
[1743907642595,6.34494046,1808.0,1807.9,0.15319704]
[1743907644003,6.34494046,1808.0,1807.9,4.02508704]
[1743907644567,6.34494046,1808.0,1807.9,0.15319704]
[1743907646281,6.34494046,1808.0,1807.9,4.02508704]
[1743907647897,6.47,1808.3,1808.1,3.87133]
[1743907648105,4.0,1808.2,1808.1,4.63783]
[1743907648881,9.5615946,1808.3,1808.1,4.63783]
[1743907649313,9.5615946,1808.3,1808.1,8.50922]
[1743907651610,9.96963977,1808.3,1808.2,3.87125]
[1743907652116,9.96963977,1808.3,1808.1,8.50918]
[1743907653417,9.96963977,1808.3,1808.2,3.87125]
[1743907654416,15.62442375,1808.3,1807.9,3.87173]
[1743907654586,2.5415946,1808.0,1807.7,3.87222]
[1743907655320,2.5415946,1807.8,1807.7,3.87222]
[1743907656717,2.5415946,1807.8,1807.7,4.646695]
[1743907656889,2.5415946,1808.0,1807.8,3.87196]
[1743907657517,2.5415946,1808.0,1807.8,7.74392]
[1743907657714,2.5415946,1808.0,1807.9,3.87189]
[1743907658023,2.5415946,1808.2,1807.9,7.74364]
[1743907658318,4.00433358,1808.2,1807.9,7.74364]
[1743907659427,4.00433358,1808.2,1807.9,3.87176]
[1743907659634,2.5415946,1808.0,1807.9,3.87176]
[1743907659791,2.5415946,1808.0,1807.8,3.87208]
[1743907660710,2.5415946,1808.0,1807.9,0.15264216]
[1743907660909,10.58285406,1808.0,1807.9,0.15264216]
[1743907661087,0.55,1807.9,1807.6,3.87248]
[1743907661288,4.16957946,1808.0,1807.7,4.02389827]
[1743907661485,2.5415946,1807.9,1807.7,7.89621827]
[1743907661711,8.06846601,1808.0,1807.7,7.89621827]
[1743907661911,8.06846601,1808.0,1807.8,3.87208]
[1743907662308,8.06846601,1808.0,1807.9,0.15157827]
[1743907666306,7.23626601,1808.0,1807.9,0.15157827]
[1743907669999,7.23626601,1808.0,1807.7,3.87232]
[1743907670197,7.23626601,1808.0,1807.8,0.15157827]
[1743907673529,7.23626601,1808.0,1807.8,4.02365827]
[1743907674895,7.23626601,1808.0,1807.8,0.15157827]
[1743907680331,7.23626601,1808.0,1807.8,4.02364827]
[1743907680538,7.23626601,1808.0,1807.8,4.8132311]
[1743907680740,7.23626601,1808.0,1807.8,9.4553311]
[1743907681737,7.23626601,1808.0,1807.9,3.87189]
[1743907681905,7.23626601,1808.0,1807.9,4.02386441]
[1743907682308,4.23626601,1808.2,1807.9,0.15197441]
[1743907682522,4.23626601,1808.2,1808.0,3.87159]
[1743907682722,4.23626601,1808.2,1808.0,7.74314]
[1743907682922,7.23626601,1808.2,1808.1,0.15169154]
[1743907683122,11.23626601,1808.2,1808.0,4.64165]
[1743907683435,11.23626601,1808.2,1808.0,8.51321]
[1743907683606,11.23626601,1808.2,1808.1,3.87146]
[1743907683933,2.54080962,1808.2,1808.1,4.0220961]
[1743907699657,10.72505962,1808.2,1808.1,0.1506361]
[1743907699840,16.64505962,1808.2,1808.1,0.1506361]
[1743907700035,8.18451,1808.1,1807.7,3.8722]
[1743907700357,2.54080962,1807.8,1807.7,3.87217]
[1743907703159,2.9534178,1807.8,1807.7,3.87217]
[1743907705833,2.9534178,1807.8,1807.7,4.0210135]
[1743907711774,2.9534178,1807.8,1807.7,4.8205135]
[1743907711775,0.41260818,1807.8,1807.7,4.8205135]
[1743907711943,8.46080962,1808.0,1807.8,3.87193]
[1743907712361,11.46080962,1808.0,1807.9,0.14979148]
[1743907717293,11.46080962,1808.0,1807.9,4.02168148]
[1743907719680,11.46080962,1808.0,1807.9,0.14979148]
[1743907721374,11.46080962,1808.0,1807.9,4.02168148]
[1743907724189,8.46080962,1808.0,1807.9,4.02168148]
[1743907730895,9.24030962,1808.0,1807.9,0.14979148]
[1743907731098,10.55149058,1808.0,1807.9,0.14979148]
[1743907731262,10.55149058,1808.0,1807.7,7.74444]
[1743907731462,9.24030962,1808.0,1807.8,0.14973223]
[1743907734911,7.42189,1807.9,1807.8,0.14973223]
[1743907735212,7.42189,1807.9,1807.3,1.22753748]
[1743907735213,3.7795,1807.4,1807.3,1.22753748]
[1743907735366,10.2495,1807.4,1807.3,1.22753748]
[1743907735567,11.12246,1807.4,1807.3,1.33886477]
[1743907735766,13.17607396,1807.4,1807.3,1.33886477]
[1743907736199,17.17607396,1807.4,1807.3,1.33886477]
[1743907739179,17.58509235,1807.4,1807.3,1.33886477]
[1743907739481,10.32901839,1807.4,1807.3,1.33886477]
[1743907739814,12.86982801,1807.4,1807.3,5.21204477]
[1743907740314,12.86982801,1807.4,1807.3,1.33886477]
[1743907741100,8.86982801,1807.4,1807.3,5.21204477]
[1743907741413,8.86982801,1807.4,1807.3,1.33886477]
[1743907741914,6.32901839,1807.4,1807.3,1.33886477]
[1743907748497,6.32901839,1807.4,1807.3,5.21204477]
[1743907750621,6.32901839,1807.4,1807.3,1.33886477]
[1743907763335,6.32901839,1807.4,1807.3,5.21204477]
[1743907763833,8.8721467,1807.4,1807.3,5.21204477]
[1743907773025,8.8721467,1807.4,1807.3,1.33886477]
[1743907775335,8.8721467,1807.4,1807.3,5.21204477]
[1743907776622,8.8721467,1807.4,1807.3,1.33886477]
[1743907781255,8.8721467,1807.4,1807.3,5.21204477]
[1743907788153,6.32901839,1807.4,1807.3,5.21204477]
[1743907788368,6.32901839,1807.4,1807.3,7.40177199]
[1743907791060,6.32901839,1807.4,1807.3,6.02824477]
[1743907807980,6.32901839,1807.4,1807.3,5.21204477]
[1743907816697,13.60012831,1807.9,1807.7,3.8723]
[1743907816899,4.0,1807.8,1807.7,3.8723]
[1743907817069,7.0,1807.8,1807.7,3.8723]
[1743907817765,7.42490763,1807.8,1807.7,4.6682]
[1743907818387,3.42490763,1807.8,1807.7,4.6682]
[1743907821405,0.42490763,1807.8,1807.7,4.6682]
[1743907821611,2.54312831,1808.2,1808.0,3.87156]
[1743907821797,4.0,1808.1,1808.0,3.87156]
[1743907822670,2.54312831,1808.2,1808.0,7.74312]
[1743907825474,2.95806451,1808.2,1808.0,7.74312]
[1743907825674,2.95806451,1808.2,1808.1,3.98402906]
[1743907828103,2.95806451,1808.2,1808.1,0.11256906]
[1743907828403,12.13983096,1808.2,1808.1,0.11256906]
[1743907828902,3.0,1808.1,1807.8,7.7441]
[1743907829090,3.0,1808.1,1807.9,3.87188]
[1743907832107,3.0,1808.1,1807.9,3.87176]
[1743907833487,3.0,1808.1,1808.0,3.87168]
[1743907838299,6.3349362,1808.2,1808.1,3.87146]
[1743907840611,0.4149362,1808.2,1808.1,3.87146]
[1743907840820,8.46312831,1808.4,1808.3,3.87103]
[1743907841019,12.46312831,1808.4,1808.3,3.87103]
[1743907841207,5.92,1808.4,1808.3,3.87103]
[1743907841518,6.34122326,1808.4,1808.3,3.87103]
[1743907843122,8.88435157,1808.4,1808.1,0.7707]
[1743907843324,2.54312831,1808.2,1808.0,3.8715]
[1743907844328,2.54312831,1808.2,1808.1,3.87146]
[1743907845309,3.0,1808.3,1808.2,3.87125]
[1743907852334,6.34122326,1808.4,1808.3,3.87103]
[1743907861074,9.34122326,1808.4,1808.3,3.87103]
[1743907863610,6.34122326,1808.4,1808.3,3.87103]
[1743907865303,6.34122326,1808.4,1808.3,4.645258]
[1743907865611,6.34122326,1808.4,1808.3,5.438758]
[1743907868416,5.92,1808.4,1808.3,5.438758]
[1743907870095,3.54496106,1808.7,1808.6,3.87039]
[1743907870273,6.96545932,1808.7,1808.6,3.87039]
[1743907870674,3.96545932,1808.7,1808.6,3.87039]
[1743907880885,6.96545932,1808.7,1808.6,3.87039]
[1743907896045,3.0,1808.6,1808.3,5.459568]
[1743907896249,10.32358763,1808.7,1808.3,3.87094]
[1743907896250,2.54312831,1808.5,1808.3,3.87094]
[1743907896434,3.35812831,1808.5,1808.3,3.87094]
[1743907898017,3.35812831,1808.5,1808.3,7.74182]
[1743907902557,3.35812831,1808.5,1808.4,3.87082]
[1743907903341,3.35812831,1808.5,1808.3,3.87088]
[1743907903541,3.35812831,1808.5,1808.3,7.74176]
[1743907904357,3.35812831,1808.5,1808.3,7.74177]
[1743907905462,3.35812831,1808.5,1808.4,3.87082]
[1743907908854,2.54312831,1808.5,1808.4,3.87082]
[1743907909232,5.92,1808.6,1808.4,3.87082]
[1743907909459,8.46312831,1808.6,1808.4,3.87069]
[1743907909628,8.46312831,1808.6,1808.3,3.87101]
[1743907909825,8.46312831,1808.6,1808.4,3.87077]
[1743907910740,8.46312831,1808.6,1808.4,7.74146]
[1743907913872,11.46312831,1808.6,1808.5,3.87061]
[1743907914057,8.92,1808.6,1808.5,3.87061]
[1743907914263,8.92,1808.6,1808.5,5.42104]
[1743907914462,5.92,1808.6,1808.5,5.42104]
[1743907916976,3.96545932,1808.7,1808.6,3.87039]
[1743907917559,2.54312831,1809.1,1809.0,3.86954]
[1743907917760,6.54312831,1809.1,1809.0,3.86954]
[1743907918274,9.54312831,1809.1,1809.0,3.86954]
[1743907919183,5.95575638,1809.1,1809.0,3.86954]
[1743907924782,3.41262807,1809.1,1809.0,4.643469]
[1743907932999,0.41262807,1809.1,1809.0,3.86954]
[1743907933199,5.92,1809.2,1809.0,7.73908]
[1743907933765,8.92,1809.2,1809.1,3.86932]
[1743907934898,7.69406,1809.1,1808.7,3.87017]
[1743907935063,2.54312831,1809.0,1808.7,3.87017]
[1743907935269,0.8246,1808.9,1808.7,3.87017]
[1743907939205,0.8246,1808.9,1808.7,7.74022]
[1743907940577,4.34214714,1809.0,1808.8,3.86995]
[1743907942097,3.31842831,1809.0,1808.8,7.73979]
[1743907942416,2.54312831,1809.0,1808.8,7.73979]
[1743907943396,2.54312831,1809.0,1808.8,3.86984]
[1743907944520,2.54312831,1809.0,1808.8,7.73966]
[1743907947124,2.54312831,1809.0,1808.8,3.86982]
[1743907951535,2.54312831,1809.0,1808.8,7.73964]
[1743907955028,2.54312831,1809.0,1808.8,3.86982]
[1743907957438,2.54312831,1809.0,1808.8,7.73965]
[1743907957737,2.54312831,1809.0,1808.8,3.86982]
[1743907959136,2.54312831,1809.0,1808.8,7.73967]
[1743907959463,2.54312831,1809.0,1808.6,0.75]
[1743907959606,2.54312831,1808.8,1808.5,3.87059]
[1743907959808,3.34502831,1808.8,1808.5,3.87059]
[1743907960511,3.34502831,1808.8,1808.5,7.74105]
[1743907961807,3.34502831,1808.8,1808.6,3.87036]
[1743907962009,2.54312831,1808.8,1808.6,3.87036]
[1743907969078,2.54312831,1808.8,1808.5,3.87046]
[1743907969293,2.54312831,1808.6,1808.4,3.87081]
[1743907971900,2.54312831,1808.6,1808.4,7.74148]
[1743907972406,2.54312831,1808.6,1808.5,3.87061]
[1743907972590,2.96432177,1808.6,1808.5,3.87061]
[1743907974812,2.96432177,1808.6,1808.4,3.87067]
[1743907983742,3.0,1808.3,1808.0,4.68737]
[1743907983920,2.54312831,1808.1,1808.0,3.87167]
[1743907984595,6.34192831,1808.3,1808.0,3.87167]
[1743907984822,6.34192831,1808.3,1808.1,3.87144]
[1743907987305,6.34192831,1808.3,1808.0,3.87167]
[1743907988630,5.54312831,1808.1,1807.9,3.87184]
[1743907988926,5.54312831,1808.1,1807.7,8.57584]
[1743907989124,2.54312831,1807.9,1807.7,8.57584]
[1743907989528,2.54312831,1807.9,1807.8,3.8721]
[1743907990032,2.95865997,1807.9,1807.8,3.8721]
[1743907990226,0.41553166,1807.9,1807.8,3.8721]
[1743907990420,6.37512831,1808.1,1807.8,3.8721]
[1743907991234,7.99177414,1808.1,1807.8,3.8721]
[1743907991799,11.86331414,1808.1,1807.7,3.87232]
[1743907992003,3.0,1807.8,1807.5,4.77324138]
[1743907992207,3.37512831,1807.7,1807.5,3.94204138]
[1743907992407,3.37512831,1807.7,1807.4,7.74571]
[1743907993345,3.37512831,1807.7,1807.5,3.87274]
[1743907995744,0.832,1807.7,1807.5,3.87274]
[1743907996845,1.63894393,1807.7,1807.3,5.93186748]
[1743907997054,3.0,1807.5,1807.3,5.10066748]
[1743907998451,3.0,1807.5,1807.3,1.22753748]
[1743907998654,5.06003926,1807.4,1807.3,1.22753748]
[1743907999348,5.61003926,1807.4,1807.3,1.22753748]
[1743907999736,20.65528032,1807.4,1807.3,1.22753748]
[1743907999947,24.65528032,1807.4,1807.3,1.22753748]
[1743908002734,9.38824252,1807.3,1807.2,1.22753748]
[1743908002960,22.79071907,1807.3,1807.2,1.22753748]
[1743908003266,26.10605901,1807.3,1807.2,1.22753748]
[1743908006582,20.97405901,1807.3,1807.2,1.22753748]
[1743908006754,26.10605901,1807.3,1807.2,1.22753748]
[1743908010876,21.41127901,1807.3,1807.2,1.22753748]
[1743908011066,11.69246252,1807.3,1807.2,1.22753748]
[1743908012086,11.69246252,1807.3,1807.2,5.85442748]
[1743908012087,8.69246252,1807.3,1807.2,5.85442748]
[1743908012252,4.69246252,1807.3,1807.2,5.85442748]
[1743908013277,7.69246252,1807.3,1807.2,5.85442748]
[1743908016498,7.69246252,1807.3,1807.2,1.22753748]
[1743908018224,8.24246252,1807.3,1807.2,1.22753748]
[1743908018407,9.94188781,1807.3,1807.2,1.22753748]
[1743908019010,6.94188781,1807.3,1807.2,1.22753748]
[1743908021872,10.81506781,1807.3,1807.2,1.22753748]
[1743908024479,6.94188781,1807.3,1807.2,1.22753748]
[1743908026875,10.81506781,1807.3,1807.2,1.22753748]
[1743908027084,14.81506781,1807.3,1807.2,1.22753748]
[1743908032317,15.53554436,1807.3,1807.2,1.22753748]
[1743908040632,18.53554436,1807.3,1807.2,1.22753748]
[1743908042035,17.81506781,1807.3,1807.2,2.01403748]